fUSD/lending_fUSD_20250205
["ID","MTS","AMOUNT","RATE_DAILY","PERIOD"]
[351742942,1738773046514,-941.78489494,0.00010377,2]
[351742944,1738773046525,-1415.38,0.00010414,2]
[351742947,1738773046535,-388.71,0.00010476,2]
[351742950,1738773046546,-352.58,0.00010476,2]
[351742953,1738773046557,-500.0,0.00010476,2]
[351742954,1738773046567,-500.0,0.00010476,2]
[351742956,1738773046577,-500.0,0.00010476,2]
[351742959,1738773046588,-500.0,0.00010476,2]
[351742961,1738773046599,-500.0,0.00010476,2]
[351742963,1738773046611,-273.89,0.00010476,2]
[351742965,1738773046620,-500.0,0.00010476,2]
[351742966,1738773046629,-500.0,0.00010476,2]
[351742968,1738773046639,-500.0,0.00010476,2]
[351742970,1738773046649,-500.0,0.00010476,2]
[351742972,1738773046659,-500.0,0.00010476,2]
[351742975,1738773046670,-500.0,0.00010476,2]
[351742977,1738773046680,-151.665853,0.00010476,2]
[351742979,1738773046690,-500.0,0.00010476,2]
[351742981,1738773046701,-500.0,0.00010476,2]
[351742983,1738773046715,-500.0,0.00010476,2]
[351742985,1738773046727,-500.0,0.00010476,2]
[351742987,1738773046737,-161.168308,0.00010477,2]
[351742989,1738773046749,-205.79,0.00010477,2]
[351742991,1738773046767,-608.44367963,0.00010477,2]
[351742993,1738773046777,-500.0,0.00010477,2]
[351742995,1738773046789,-500.0,0.00010477,2]
[351742997,1738773046799,-500.0,0.00010477,2]
[351742999,1738773046811,-401.07946359,0.00010477,2]
[351743001,1738773046821,-500.0,0.00010477,2]
[351743003,1738773046832,-500.0,0.00010477,2]
[351743005,1738773046842,-500.0,0.00010477,2]
[351743007,1738773046852,-495.42,0.00010477,2]
[351743009,1738773046862,-642.44,0.00010477,2]
[351743011,1738773046873,-630.6,0.00010477,2]
[351743013,1738773046884,-196.70464334,0.00010477,2]
[351743015,1738773046893,-388.06,0.00010477,2]
[351743017,1738773046904,-500.0,0.00010477,2]
[351743019,1738773046914,-500.0,0.00010477,2]
[351743020,1738773046924,-399.07,0.00010477,2]
[351743023,1738773046934,-500.0,0.00010477,2]
[351743024,1738773046943,-500.0,0.00010477,2]
[351743026,1738773046953,-500.0,0.00010477,2]
[351743028,1738773046962,-1118.0,0.00010477,2]
[351743030,1738773046971,-500.0,0.00010477,2]
[351743032,1738773046980,-500.0,0.00010477,2]
[351743035,1738773046990,-500.0,0.00010477,2]
[351743037,1738773046999,-500.0,0.00010477,2]
[351743039,1738773047011,-500.0,0.00010477,2]
[351743041,1738773047020,-500.0,0.00010477,2]
[351743043,1738773047029,-500.0,0.00010478,2]
[351743045,1738773047039,-500.0,0.00010613,2]
[351743047,1738773047048,-500.0,0.00010613,2]
[351743049,1738773047058,-500.0,0.00010613,2]
[351743050,1738773047068,-189.64,0.00010613,2]
[351743052,1738773047077,-500.0,0.00010613,2]
[351743055,1738773047086,-247.51,0.00010613,2]
[351743056,1738773047095,-500.0,0.00010613,2]
[351743059,1738773047105,-500.0,0.00010613,2]
[351743060,1738773047114,-500.0,0.00010613,2]
[351743063,1738773047125,-244.19,0.00010613,2]
[351743064,1738773047134,-294.17,0.00010613,2]
[351743066,1738773047143,-230.3933727,0.00010613,2]
[351743067,1738773047153,-500.0,0.00010613,2]
[351743068,1738773047162,-500.0,0.00010613,2]
[351743069,1738773047171,-500.0,0.00010613,2]
[351743070,1738773047180,-500.0,0.00010614,2]
[351743071,1738773047190,-500.0,0.00010614,2]
[351743072,1738773047200,-500.0,0.00010614,2]
[351743073,1738773047209,-500.0,0.00010614,2]
[351743074,1738773047219,-500.0,0.00010614,2]
[351743075,1738773047229,-500.0,0.00010614,2]
[351743076,1738773047238,-500.0,0.00010614,2]
[351743077,1738773047251,-500.0,0.00010614,2]
[351743079,1738773047262,-500.0,0.00010614,2]
[351743082,1738773047272,-500.0,0.00010614,2]
[351743084,1738773047282,-500.0,0.00010614,2]
[351743086,1738773047291,-1118.0,0.00010614,2]
[351743088,1738773047301,-500.0,0.00010614,2]
[351743090,1738773047310,-500.0,0.00010614,2]
[351743092,1738773047319,-500.0,0.00010614,2]
[351743094,1738773047328,-500.0,0.00010614,2]
[351743096,1738773047337,-267.34,0.00010614,2]
[351743098,1738773047347,-500.0,0.00010614,2]
[351743100,1738773047357,-500.0,0.00010615,2]
[351743102,1738773047367,-455.38823829,0.0001075,2]
[351743103,1738773047376,-500.0,0.0001075,2]
[351743106,1738773047386,-500.0,0.0001075,2]
[351743107,1738773047396,-500.0,0.0001075,2]
[351743109,1738773047405,-500.0,0.0001075,2]
[351743112,1738773047415,-500.0,0.0001075,2]
[351743114,1738773047424,-500.0,0.0001075,2]
[351743116,1738773047434,-500.0,0.0001075,2]
[351743117,1738773047443,-500.0,0.0001075,2]
[351743120,1738773047453,-500.0,0.0001075,2]
[351743121,1738773047463,-390.9346681,0.00010751,2]
[351743123,1738773047473,-500.0,0.00010751,2]
[351743125,1738773047482,-500.0,0.00010751,2]
[351743127,1738773047491,-500.0,0.00010751,2]
[351743129,1738773047501,-500.0,0.00010751,2]
[351743131,1738773047514,-500.0,0.00010751,2]
[351743133,1738773047525,-500.0,0.00010751,2]
[351743135,1738773047534,-500.0,0.00010751,2]
[351743137,1738773047544,-500.0,0.00010751,2]
[351743139,1738773047554,-500.0,0.00010751,2]
[351743141,1738773047564,-500.0,0.00010751,2]
[351743143,1738773047574,-1118.0,0.00010751,2]
[351743145,1738773047585,-500.0,0.00010751,2]
[351743147,1738773047595,-500.0,0.00010751,2]
[351743149,1738773047605,-500.0,0.00010751,2]
[351743151,1738773047615,-500.0,0.00010751,2]
[351743153,1738773047625,-500.0,0.00010751,2]
[351743155,1738773047635,-500.00000021,0.00010752,2]
[351743157,1738773047645,-1000.0,0.0001088,2]
[351743159,1738773047654,-500.0,0.00010887,2]
[351743161,1738773047663,-500.0,0.00010887,2]
[351743163,1738773047673,-500.0,0.00010887,2]
[351743165,1738773047683,-500.0,0.00010887,2]
[351743167,1738773047693,-500.0,0.00010887,2]
[351743169,1738773047704,-500.0,0.00010887,2]
[351743171,1738773047714,-615.06,0.00010887,2]
[351743172,1738773047725,-500.0,0.00010887,2]
[351743174,1738773047736,-500.0,0.00010887,2]
[351743176,1738773047746,-500.0,0.00010888,2]
[351743178,1738773047757,-500.0,0.00010888,2]
[351743180,1738773047770,-500.0,0.00010888,2]
[351743182,1738773047780,-500.0,0.00010888,2]
[351743184,1738773047791,-500.0,0.00010888,2]
[351743186,1738773047802,-500.0,0.00010888,2]
[351743188,1738773047815,-500.0,0.00010888,2]
[351743190,1738773047825,-500.0,0.00010888,2]
[351743192,1738773047835,-500.0,0.00010888,2]
[351743194,1738773047845,-1118.0,0.00010888,2]
[351743196,1738773047855,-500.0,0.00010888,2]
[351743198,1738773047865,-500.0,0.00010888,2]
[351743200,1738773047875,-185.92,0.00010888,2]
[351743202,1738773047885,-500.0,0.00010888,2]
[351743204,1738773047896,-500.0,0.00010888,2]
[351743206,1738773047907,-1000.0,0.00010958,2]
[351743208,1738773047917,-500.0,0.00011024,2]
[351743210,1738773047927,-500.0,0.00011024,2]
[351743212,1738773047936,-541.94,0.00011024,2]
[351743214,1738773047946,-292.0,0.00011024,2]
[351743216,1738773047955,-318.89,0.00011024,2]
[351743218,1738773047966,-500.0,0.00011024,2]
[351743220,1738773047976,-500.0,0.00011024,2]
[351743222,1738773047986,-547.61,0.00011024,2]
[351743224,1738773047995,-500.0,0.00011025,2]
[351743226,1738773048005,-500.0,0.00011025,2]
[351743228,1738773048016,-500.0,0.00011025,2]
[351743230,1738773048026,-500.0,0.00011025,2]
[351743232,1738773048035,-500.0,0.00011025,2]
[351743233,1738773048045,-500.0,0.00011025,2]
[351743235,1738773048056,-413.91678674,0.00011025,2]
[351743237,1738773048066,-500.0,0.00011025,2]
[351743239,1738773048076,-500.0,0.00011025,2]
[351743241,1738773048086,-1118.0,0.00011025,2]
[351743243,1738773048096,-500.0,0.00011025,2]
[351743245,1738773048106,-500.0,0.00011025,2]
[351743247,1738773048116,-500.0,0.00011025,2]
[351743249,1738773048126,-500.0,0.00011025,2]
[351743251,1738773048136,-941.78489492,0.00011139,2]
[351743253,1738773048148,-500.0,0.00011161,2]
[351743255,1738773048158,-354.82,0.00011161,2]
[351743257,1738773048168,-500.0,0.00011161,2]
[351743259,1738773048178,-500.0,0.00011161,2]
[351743261,1738773048189,-500.0,0.00011162,2]
[351743263,1738773048199,-500.0,0.00011162,2]
[351743265,1738773048210,-500.0,0.00011162,2]
[351743267,1738773048220,-500.0,0.00011162,2]
[351743269,1738773048232,-500.0,0.00011162,2]
[351743271,1738773048242,-500.0,0.00011162,2]
[351743273,1738773048252,-500.0,0.00011162,2]
[351743275,1738773048263,-500.0,0.00011162,2]
[351743277,1738773048274,-1118.0,0.00011162,2]
[351743278,1738773048285,-500.0,0.00011162,2]
[351743280,1738773048296,-500.0,0.00011162,2]
[351743281,1738773048307,-500.0,0.00011162,2]
[351743283,1738773048316,-500.0,0.00011162,2]
[351743285,1738773048326,-1000.0,0.00011232,2]
[351743286,1738773048337,-312.73,0.00011298,2]
[351743288,1738773048348,-500.0,0.00011298,2]
[351743289,1738773048358,-500.0,0.00011298,2]
[351743291,1738773048368,-500.0,0.00011299,2]
[351743292,1738773048379,-334.31674385,0.00011299,2]
[351743294,1738773048389,-500.0,0.00011299,2]
[351743296,1738773048399,-461.19,0.00011299,2]
[351743297,1738773048410,-649.21,0.00011299,2]
[351743299,1738773048421,-500.0,0.00011299,2]
[351743300,1738773048431,-500.0,0.00011299,2]
[351743302,1738773048441,-500.0,0.00011299,2]
[351743304,1738773048452,-1118.0,0.00011299,2]
[351743305,1738773048462,-500.0,0.00011299,2]
[351743307,1738773048473,-500.0,0.00011299,2]
[351743309,1738773048483,-500.0,0.00011299,2]
[351743310,1738773048493,-500.0,0.00011299,2]
[351743312,1738773048504,-1398.41,0.0001132,2]
[351743314,1738773048516,-500.0,0.00011435,2]
[351743315,1738773048526,-500.0,0.00011435,2]
[351743317,1738773048536,-500.0,0.00011436,2]
[351743318,1738773048546,-575.24522241,0.00011436,2]
[351743320,1738773048557,-500.0,0.00011436,2]
[351743322,1738773048567,-500.0,0.00011436,2]
[351743323,1738773048577,-500.0,0.00011436,2]
[351743325,1738773048589,-1118.0,0.00011436,2]
[351743327,1738773048600,-500.0,0.00011436,2]
[351743328,1738773048609,-500.0,0.00011436,2]
[351743330,1738773048619,-500.0,0.00011436,2]
[351743331,1738773048629,-500.0,0.00011436,2]
[351743333,1738773048638,-2481.3,0.000115,2]
[351743334,1738773048648,-1000.0,0.00011506,2]
[351743336,1738773048658,-218.57,0.00011507,2]
[351743338,1738773048669,-151.08814574,0.00011555,2]
[351743339,1738773048679,-500.0,0.00011572,2]
[351743341,1738773048689,-500.0,0.00011572,2]
[351743343,1738773048699,-500.0,0.00011573,2]
[351743344,1738773048709,-500.0,0.00011573,2]
[351743346,1738773048723,-500.0,0.00011573,2]
[351743348,1738773048734,-500.0,0.00011573,2]
[351743350,1738773048744,-1118.0,0.00011573,2]
[351743351,1738773048755,-500.0,0.00011573,2]
[351743353,1738773048768,-500.0,0.00011573,2]
[351743355,1738773048779,-500.0,0.00011573,2]
[351743356,1738773048789,-500.0,0.00011573,2]
[351743358,1738773048801,-328.76236634,0.00011709,2]
[351743360,1738773048811,-500.0,0.00011709,2]
[351743361,1738773048821,-500.0,0.0001171,2]
[351743363,1738773048831,-500.0,0.0001171,2]
[351743365,1738773048842,-500.0,0.0001171,2]
[351743366,1738773048852,-500.0,0.0001171,2]
[351743368,1738773048863,-1118.0,0.0001171,2]
[351743370,1738773048874,-500.0,0.0001171,2]
[351743371,1738773048885,-230.47999936,0.0001171,2]
[351743373,1738773048896,-500.0,0.0001171,2]
[351743375,1738773048906,-500.0,0.0001171,2]
[351743376,1738773048917,-254.58589099,0.0001178,2]
[351743378,1738773048929,-482.09,0.00011846,2]
[351743379,1738773048940,-500.0,0.00011847,2]
[351743381,1738773048951,-554.05571431,0.00011847,2]
[351743383,1738773048962,-500.0,0.00011847,2]
[351743384,1738773048974,-500.0,0.00011847,2]
[351743386,1738773048986,-1118.0,0.00011847,2]
[351743388,1738773048997,-500.0,0.00011847,2]
[351743390,1738773049008,-500.0,0.00011847,2]
[351743391,1738773049024,-500.0,0.00011847,2]
[351743393,1738773049035,-375.1,0.00011848,2]
[351743395,1738773049046,-4000.0,0.0001188,2]
[351743397,1738773049057,-2000.0,0.000119,2]
[351743398,1738773049069,-2014.3,0.000119,2]
[351743400,1738773049079,-151.08814574,0.000119,2]
[351743402,1738773049089,-941.78489492,0.000119,2]
[351743404,1738773049100,-1686.39461378,0.000119,2]
[351743405,1738773049112,-1000.0,0.00011968,2]
[351743407,1738773049123,-500.0,0.00011984,2]
[351743409,1738773049133,-500.0,0.00011984,2]
[351743410,1738773049144,-500.0,0.00011984,2]
[351743412,1738773049156,-1118.0,0.00011984,2]
[351743414,1738773049168,-500.0,0.00011984,2]
[351743415,1738773049179,-500.0,0.00011984,2]
[351743417,1738773049191,-500.0,0.00011984,2]
[351743419,1738773049203,-1000.0,0.0001199,2]
[351743421,1738773049213,-1000.0,0.0001199,2]
[351743422,1738773049224,-1000.0,0.0001199,2]
[351743424,1738773049234,-1000.0,0.0001199,2]
[351743426,1738773049245,-1000.0,0.0001199,2]
[351743427,1738773049256,-1000.0,0.0001199,2]
[351743429,1738773049270,-1000.0,0.0001199,2]
[351743431,1738773049281,-1000.0,0.0001199,2]
[351743433,1738773049292,-1000.0,0.0001199,2]
[351743434,1738773049303,-1000.0,0.0001199,2]
[351743436,1738773049315,-2000.0,0.0001199,2]
[351743438,1738773049327,-2000.0,0.00011999,2]
[351743440,1738773049337,-2000.0,0.00011999,2]
[351743441,1738773049350,-1131.5119,0.00011999,2]
[351743443,1738773049363,-500.0,0.00011999,2]
[351743445,1738773049374,-1197.0,0.00011999,2]
[351743447,1738773049386,-475.50662693,0.00012,2]
[351743449,1738773049397,-612.62470196,0.00012,2]
[351743450,1738773049409,-265478.27491761,0.00012,2]
[351743465,1738773049607,-23944.91226869,0.00012,2]
[351743474,1738773049719,-300.89089682,0.0001,2]
[351743475,1738773049733,-833.71623956,0.00012,2]
[351743477,1738773049746,-115020.23325801,0.00012,2]
[351743479,1738773049758,-221745.01341245,0.00012,2]
[351743482,1738773049774,-152684.17779396,0.00012,2]
[351743484,1738773049786,-2750.0,0.00012,2]
[351743486,1738773049802,-646.14234042,0.00012,2]
[351743488,1738773049824,-10506.76939382,0.00012,2]
[351743489,1738773049836,-6197.33498748,0.00012,2]
[351743490,1738773049849,-4401.82443408,0.00012,2]
[351743491,1738773049861,-2367.26859173,0.00012,2]
[351743492,1738773049876,-671.73780001,0.00012,2]
[351743493,1738773049918,-6185.60214359,0.00012,2]
[351743494,1738773050041,-274.23854478,9.928e-05,2]
[351743496,1738773050055,-225.76145522,9.928e-05,2]
[351743497,1738773050065,-500.0,0.00010065,2]
[351743498,1738773050075,-463.50554106,0.00010202,2]
[351743501,1738773050088,-36.49445894,0.00010202,2]
[351743503,1738773050098,-500.0,0.00010339,2]
[351743505,1738773050108,-288.44246242,0.00010476,2]
[351743507,1738773050118,-1104.96035614,0.00012,2]
[351743509,1738773050130,-4858.11589993,0.00012,2]
[351743519,1738773050213,-5100.0,0.00012,2]
[351743521,1738773050225,-5400.0,0.00012,2]
[351743523,1738773050237,-1261074.39109691,0.00012,2]
[351743525,1738773050249,-9939.8,0.00012,2]
[351743528,1738773050263,-19542.57766898,0.00012,2]
[351743530,1738773050275,-9759.47999999,0.00012,2]
[351743532,1738773050287,-90375.98318567,0.00012,2]
[351743535,1738773050299,-5158.1683793,0.00012,2]
[351743537,1738773050311,-676.94940654,0.00012,2]
[351743539,1738773050323,-631.0339,0.00012,2]
[351743542,1738773050335,-1743.5472512,0.00012,2]
[351743544,1738773050348,-610.20626605,0.00012,2]
[351743546,1738773050360,-6770.54982594,0.00012,2]
[351744060,1738773109961,851.8578546,5.781e-05,7]
[351744068,1738773310546,10000.0,0.00012,30]
[351744070,1738773427003,-4717.87,0.000149,31]
[351744071,1738773427028,-4717.87,0.000149,31]
[351744072,1738773427052,-4717.87,0.000149,31]
[351744073,1738773427076,-2846.39,0.000149,31]
[351744077,1738773570865,200.0,0.0002,120]
[351744085,1738773898940,284.85,0.0002,120]
[351744089,1738774165144,-276.611373,8.178e-05,2]
[351744090,1738774165172,-86.87872096,8.189e-05,2]
[351744091,1738774189558,-2275.50127904,8.189e-05,2]
[351744092,1738774189582,-586.27,8.207e-05,2]
[351744093,1738774189606,-197.29,8.207e-05,2]
[351744094,1738774189629,-1363.94,8.219e-05,2]
[351744095,1738774189653,-4725.14086636,8.253e-05,2]
[351744096,1738774195278,-10000.0,8.253e-05,2]
[351744097,1738774202867,-1030.29478551,8.253e-05,2]
[351744098,1738774202891,-250.0,8.254e-05,2]
[351744099,1738774202913,-258.27,8.388e-05,2]
[351744100,1738774202946,-2000.0,8.43e-05,2]
[351744101,1738774202970,-1500.0,8.473e-05,2]
[351744102,1738774202993,-1043.88,8.515e-05,2]
[351744103,1738774203017,-266.4928,8.699e-05,2]
[351744104,1738774203046,-150.0,8.822e-05,2]
[351744105,1738774203071,-3501.06241449,8.836e-05,2]
[351744106,1738774208018,-2303.01568551,8.836e-05,2]
[351744107,1738774208041,-3814.8332,8.836e-05,2]
[351744108,1738774208063,-500.0,8.851e-05,2]
[351744109,1738774208086,-2500.0,8.851e-05,2]
[351744110,1738774208113,-150.0,8.972e-05,2]
[351744111,1738774208137,-732.15111449,8.973e-05,2]
[351744112,1738774213044,-7848.45108551,8.973e-05,2]
[351744113,1738774213065,-160.92,9.04e-05,2]
[351744114,1738774213086,-772.82908493,9.04e-05,2]
[351744115,1738774213109,-160.92,9.044e-05,2]
[351744116,1738774213137,-160.92,9.047e-05,2]
[351744117,1738774213162,-160.92,9.051e-05,2]
[351744118,1738774213186,-160.92,9.055e-05,2]
[351744119,1738774213215,-160.92,9.059e-05,2]
[351744120,1738774213240,-160.92,9.062e-05,2]
[351744121,1738774213263,-160.92,9.066e-05,2]
[351744122,1738774213287,-91.35982956,9.07e-05,2]
[351744123,1738774228716,-69.56017044,9.07e-05,2]
[351744124,1738774228741,-160.92,9.074e-05,2]
[351744125,1738774228764,-160.92,9.077e-05,2]
[351744126,1738774228787,-160.92,9.081e-05,2]
[351744127,1738774228811,-160.92,9.085e-05,2]
[351744128,1738774228834,-5286.75982956,9.086e-05,2]
[351744137,1738774231595,-4840.5,9.086e-05,2]
[351744138,1738774231607,-1963.48601858,9.086e-05,2]
[351744139,1738774231617,-5274.0903679,9.087e-05,2]
[351744140,1738774231629,-432.7066115,9.087e-05,2]
[351744141,1738774231641,-336.52,9.087e-05,2]
[351744142,1738774231653,-451.5850078,9.087e-05,2]
[351744143,1738774231666,-392.0635844,9.087e-05,2]
[351744144,1738774231678,-402.45,9.087e-05,2]
[351744145,1738774231690,-287.77821065,9.087e-05,2]
[351744146,1738774231702,-329.82399976,9.087e-05,2]
[351744147,1738774231717,-476.83174565,9.087e-05,2]
[351744148,1738774231729,-348.816881,9.087e-05,2]
[351744149,1738774231741,-321.51096328,9.087e-05,2]
[351744150,1738774231753,-269.46,9.087e-05,2]
[351744151,1738774231776,-442.79999998,9.087e-05,2]
[351744152,1738774231788,-14133.56262808,9.087e-05,2]
[351744153,1738774231798,-1000.0,9.152e-05,2]
[351744154,1738774231807,-772.8290849,9.632e-05,2]
[351744155,1738774231817,-169.53,9.724e-05,2]
[351744156,1738774231827,-1831.20012052,9.728e-05,2]
[351744157,1738774231839,-349.98987948,9.728e-05,2]
[351744158,1738774231848,-588.6,9.927e-05,2]
[351744159,1738774231858,-500.0,9.927e-05,2]
[351744160,1738774231868,-500.0,9.927e-05,2]
[351744161,1738774231878,-500.0,9.927e-05,2]
[351744162,1738774231888,-251.03253052,9.927e-05,2]
[351744163,1738774231908,-248.96746948,9.927e-05,2]
[351744164,1738774231918,-458.51582006,9.927e-05,2]
[351744165,1738774231928,-500.0,9.927e-05,2]
[351744166,1738774231938,-500.0,9.927e-05,2]
[351744167,1738774231948,-500.0,9.927e-05,2]
[351744169,1738774231961,-500.0,9.927e-05,2]
[351744171,1738774231972,-500.0,9.927e-05,2]
[351744173,1738774231982,-500.0,9.927e-05,2]
[351744175,1738774231991,-500.0,9.927e-05,2]
[351744177,1738774232001,-500.0,9.927e-05,2]
[351744179,1738774232011,-500.0,9.927e-05,2]
[351744181,1738774232021,-500.0,9.927e-05,2]
[351744183,1738774232030,-500.0,9.927e-05,2]
[351744185,1738774232040,-500.0,9.927e-05,2]
[351744187,1738774232050,-500.0,9.927e-05,2]
[351744189,1738774232059,-500.0,9.927e-05,2]
[351744191,1738774232068,-511.3411309,9.927e-05,2]
[351744193,1738774232077,-500.0,9.927e-05,2]
[351744195,1738774232087,-500.0,9.927e-05,2]
[351744197,1738774232096,-500.0,9.927e-05,2]
[351744199,1738774232105,-501.40731737,9.927e-05,2]
[351744201,1738774232115,-295.84499448,9.927e-05,2]
[351744204,1738774232130,-204.15500552,9.927e-05,2]
[351744206,1738774232140,-487.63925738,9.927e-05,2]
[351744210,1738774232159,-12.36074262,9.927e-05,2]
[351744212,1738774232170,-501.65553997,9.927e-05,2]
[351744214,1738774232180,-500.0,9.927e-05,2]
[351744216,1738774232189,-500.98481675,9.927e-05,2]
[351744218,1738774232200,-500.0,9.927e-05,2]
[351744220,1738774232213,-29.71242306,9.927e-05,2]
[351744222,1738774232225,-470.28757694,9.927e-05,2]
[351744224,1738774232235,-500.0,9.927e-05,2]
[351744226,1738774232245,-500.0,9.927e-05,2]
[351744228,1738774232255,-500.0,9.927e-05,2]
[351744230,1738774232265,-500.0,9.927e-05,2]
[351744232,1738774232274,-500.0,9.927e-05,2]
[351744234,1738774232283,-500.0,9.927e-05,2]
[351744236,1738774232293,-500.0,9.927e-05,2]
[351744238,1738774232303,-500.0,9.927e-05,2]
[351744240,1738774232313,-500.0,9.927e-05,2]
[351744242,1738774232322,-500.0,9.927e-05,2]
[351744244,1738774232331,-294.934248,9.927e-05,2]
[351744246,1738774232340,-327.89862818,9.927e-05,2]
[351744248,1738774232350,-500.0,9.927e-05,2]
[351744250,1738774232361,-500.0,9.927e-05,2]
[351744252,1738774232371,-341.50754688,9.927e-05,2]
[351744308,1738774237506,-158.49245312,9.927e-05,2]
[351744309,1738774237516,-500.0,9.927e-05,2]
[351744310,1738774237525,-500.0,9.927e-05,2]
[351744311,1738774237535,-500.0,9.927e-05,2]
[351744312,1738774237544,-500.0,9.927e-05,2]
[351744313,1738774237554,-500.0,9.927e-05,2]
[351744314,1738774237563,-500.0,9.927e-05,2]
[351744315,1738774237573,-500.0,9.927e-05,2]
[351744316,1738774237582,-500.0,9.927e-05,2]
[351744317,1738774237591,-500.0,9.927e-05,2]
[351744318,1738774237600,-496.65448199,9.927e-05,2]
[351744319,1738774237610,-500.0,9.927e-05,2]
[351744320,1738774237620,-500.0,9.927e-05,2]
[351744321,1738774237629,-500.0,9.927e-05,2]
[351744322,1738774237638,-500.0,9.927e-05,2]
[351744323,1738774237647,-295.51876489,9.927e-05,2]
[351744324,1738774237659,-204.48123511,9.927e-05,2]
[351744325,1738774237668,-281.00418434,9.927e-05,2]
[351744326,1738774237684,-218.99581566,9.927e-05,2]
[351744327,1738774237695,-543.05,9.927e-05,2]
[351744328,1738774237707,-500.0,9.927e-05,2]
[351744329,1738774237717,-500.0,9.927e-05,2]
[351744330,1738774237727,-500.0,9.927e-05,2]
[351744331,1738774237737,-500.0,9.927e-05,2]
[351744332,1738774237746,-500.0,9.927e-05,2]
[351744333,1738774237755,-500.0,9.927e-05,2]
[351744334,1738774237765,-500.0,9.927e-05,2]
[351744335,1738774237775,-500.0,9.927e-05,2]
[351744336,1738774237784,-500.0,9.927e-05,2]
[351744337,1738774237793,-314.509349,9.927e-05,2]
[351744338,1738774237803,-500.0,9.927e-05,2]
[351744340,1738774237813,-500.0,9.927e-05,2]
[351744341,1738774237822,-500.0,9.927e-05,2]
[351744342,1738774237831,-505.78309902,9.927e-05,2]
[351744343,1738774237840,-500.0,9.927e-05,2]
[351744344,1738774237849,-500.0,9.927e-05,2]
[351744345,1738774237862,-500.0,9.927e-05,2]
[351744346,1738774237872,-500.0,9.927e-05,2]
[351744347,1738774237881,-500.0,9.927e-05,2]
[351744348,1738774237890,-500.0,9.927e-05,2]
[351744349,1738774237899,-510.89,9.927e-05,2]
[351744350,1738774237908,-500.0,9.927e-05,2]
[351744351,1738774237917,-500.0,9.927e-05,2]
[351744352,1738774237927,-500.0,9.927e-05,2]
[351744354,1738774237937,-500.0,9.927e-05,2]
[351744356,1738774237946,-500.0,9.927e-05,2]
[351744358,1738774237956,-500.0,9.927e-05,2]
[351744360,1738774237967,-500.0,9.927e-05,2]
[351744361,1738774237978,-500.0,9.927e-05,2]
[351744363,1738774237987,-500.0,9.927e-05,2]
[351744364,1738774237996,-500.0,9.927e-05,2]
[351744365,1738774238006,-664.76,9.927e-05,2]
[351744366,1738774238016,-576.37,9.927e-05,2]
[351744367,1738774238026,-500.0,9.927e-05,2]
[351744368,1738774238035,-309.64173632,9.927e-05,2]
[351744369,1738774238048,-190.35826368,9.927e-05,2]
[351744370,1738774238057,-500.0,9.927e-05,2]
[351744371,1738774238067,-503.14,9.927e-05,2]
[351744372,1738774238078,-500.0,9.927e-05,2]
[351744373,1738774238088,-500.0,9.927e-05,2]
[351744374,1738774238098,-500.0,9.927e-05,2]
[351744375,1738774238108,-500.0,9.927e-05,2]
[351744376,1738774238119,-500.0,9.927e-05,2]
[351744377,1738774238133,-500.0,9.927e-05,2]
[351744378,1738774238144,-500.0,9.927e-05,2]
[351744379,1738774238153,-500.0,9.927e-05,2]